[Event "Titled Tuesday Blitz October 11 Early 2022"]
[White "Wirig, Anthony"]
[Black "Winterberg, Lukas"]
[WhiteFideId "615013"]
[BlackFideId "24622702"]
[WhiteElo "2474"]
[BlackElo "2349"]
[Result "1-0"]
[Round "09"]
[TimeControl "180+1"]
[Date "2022.10.11"]
[WhiteClock "0:00:10"]
[BlackClock "0:00:06"]

1. d4 {[%clk 0:03:00]}  Nf6 {[%clk 0:02:59]} 2. Bg5 {[%clk 0:03:00]}  e6 {[%clk 0:02:58]} 3. e4 {[%clk 0:03:00]}  c5 {[%clk 0:02:57]} 4. e5 {[%clk 0:02:58]}  h6 {[%clk 0:02:57]} 5. Bc1 {[%clk 0:02:58]}  Nh7 {[%clk 0:02:57]} 6. d5 {[%clk 0:02:51]}  d6 {[%clk 0:02:51]} 7. Nc3 {[%clk 0:02:40]}  dxe5 {[%clk 0:02:32]} 8. Bb5+ {[%clk 0:02:39]}  Bd7 {[%clk 0:02:32]} 9. dxe6 {[%clk 0:02:38]}  fxe6 {[%clk 0:02:13]} 10. Qh5+ {[%clk 0:02:31]}  Ke7 {[%clk 0:02:13]} 11. Nf3 {[%clk 0:02:11]}  Nf6 {[%clk 0:01:40]} 12. Bg5 {[%clk 0:01:52]}  Bxb5 {[%clk 0:01:33]} 13. Nxb5 {[%clk 0:01:07]}  Qe8 {[%clk 0:01:25]} 14. Bxf6+ {[%clk 0:00:56]}  gxf6 {[%clk 0:01:24]} 15. Qxe8+ {[%clk 0:00:55]}  Kxe8 {[%clk 0:01:25]} 16. Nc7+ {[%clk 0:00:55]}  Kd7 {[%clk 0:01:25]} 17. Nxa8 {[%clk 0:00:55]}  Nc6 {[%clk 0:01:25]} 18. O-O-O+ {[%clk 0:00:52]}  Bd6 {[%clk 0:01:25]} 19. Nd2 {[%clk 0:00:47]}  Kc8 {[%clk 0:01:11]} 20. Ne4 {[%clk 0:00:44]}  Be7 {[%clk 0:01:11]} 21. c3 {[%clk 0:00:38]}  f5 {[%clk 0:01:05]} 22. Nd6+ {[%clk 0:00:31]}  Kb8 {[%clk 0:01:05]} 23. Nb5 {[%clk 0:00:30]}  Kxa8 {[%clk 0:00:56]} 24. Nc7+ {[%clk 0:00:26]}  Kb8 {[%clk 0:00:56]} 25. Nxe6 {[%clk 0:00:27]}  Kc8 {[%clk 0:00:52]} 26. Ng7 {[%clk 0:00:18]}  Rf8 {[%clk 0:00:49]} 27. Kc2 {[%clk 0:00:17]}  Rf7 {[%clk 0:00:46]} 28. Nh5 {[%clk 0:00:17]}  f4 {[%clk 0:00:46]} 29. g4 {[%clk 0:00:17]}  fxg3 {[%clk 0:00:22]} 30. fxg3 {[%clk 0:00:18]}  Rf2+ {[%clk 0:00:20]} 31. Rd2 {[%clk 0:00:17]}  Rf3 {[%clk 0:00:19]} 32. h4 {[%clk 0:00:14]}  b5 {[%clk 0:00:19]} 33. Re2 {[%clk 0:00:14]}  a5 {[%clk 0:00:17]} 34. Rd1 {[%clk 0:00:12]}  a4 {[%clk 0:00:17]} 35. Rd3 {[%clk 0:00:12]}  Rf1 {[%clk 0:00:16]} 36. Rd1 {[%clk 0:00:12]}  Rf3 {[%clk 0:00:15]} 37. Rde1 {[%clk 0:00:12]}  b4 {[%clk 0:00:14]} 38. Re3 {[%clk 0:00:11]}  Rf2+ {[%clk 0:00:14]} 39. R1e2 {[%clk 0:00:11]}  Rf1 {[%clk 0:00:15]} 40. Re4 {[%clk 0:00:11]}  Kc7 {[%clk 0:00:13]} 41. Rg4 {[%clk 0:00:11]}  Kb6 {[%clk 0:00:13]} 42. Rg6 {[%clk 0:00:11]}  Kb5 {[%clk 0:00:12]} 43. c4+ {[%clk 0:00:11]}  Kb6 {[%clk 0:00:11]} 44. Rxe5 {[%clk 0:00:11]}  Rf2+ {[%clk 0:00:10]} 45. Kd3 {[%clk 0:00:10]}  Kc7 {[%clk 0:00:08]} 46. Rxc6+ {[%clk 0:00:09]}  Kxc6 {[%clk 0:00:09]} 47. Rxe7 {[%clk 0:00:09]}  Rxb2 {[%clk 0:00:10]} 48. Re6+ {[%clk 0:00:09]}  Kb7 {[%clk 0:00:10]} 49. Re5 {[%clk 0:00:09]}  Kb6 {[%clk 0:00:09]} 50. Re6+ {[%clk 0:00:08]}  Kb7 {[%clk 0:00:08]} 51. Nf6 {[%clk 0:00:09]}  Rxa2 {[%clk 0:00:08]} 52. Ne4 {[%clk 0:00:09]}  a3 {[%clk 0:00:07]} 53. Nxc5+ {[%clk 0:00:09]}  Kc7 {[%clk 0:00:08]} 54. Na6+ {[%clk 0:00:09]}  Kd7 {[%clk 0:00:07]} 55. Rb6 {[%clk 0:00:10]}  Rb2 {[%clk 0:00:06]} 56. Rxb4 {[%clk 0:00:09]}  a2 {[%clk 0:00:06]} 57. Ra4 {[%clk 0:00:09]}  Rg2 {[%clk 0:00:05]} 58. Kd4 {[%clk 0:00:08]}  Rxg3 {[%clk 0:00:04]} 59. Rxa2 {[%clk 0:00:08]}  Rg4+ {[%clk 0:00:05]} 60. Kd5 {[%clk 0:00:08]}  Rxh4 {[%clk 0:00:06]} 61. Nc5+ {[%clk 0:00:08]}  Kc7 {[%clk 0:00:06]} 62. Ra7+ {[%clk 0:00:09]}  Kb6 {[%clk 0:00:07]} 63. Rb7+ {[%clk 0:00:09]}  Ka5 {[%clk 0:00:07]} 64. Kc6 {[%clk 0:00:09]}  Rxc4 {[%clk 0:00:06]} 65. Rb5# {[%clk 0:00:10]} 1-0


[Site "https://www.chess.com"]

[Event "Titled Tuesday Blitz October 11 Early 2022"]
[White "Yeletsky, Ivan"]
[Black "Baskakov, Egor"]
[WhiteFideId "24180327"]
[BlackFideId "24197866"]
[WhiteElo "2391"]
[BlackElo "2211"]
[Result "1/2-1/2"]
[Round "09"]
[TimeControl "180+1"]
[Date "2022.10.11"]
[WhiteClock "0:00:15"]
[BlackClock "0:00:12"]

1. e4 {[%clk 0:03:00]}  c5 {[%clk 0:02:59]} 2. Nf3 {[%clk 0:03:00]}  Nc6 {[%clk 0:02:59]} 3. d4 {[%clk 0:03:00]}  cxd4 {[%clk 0:02:59]} 4. Nxd4 {[%clk 0:03:01]}  e5 {[%clk 0:02:59]} 5. Nb5 {[%clk 0:02:47]}  a6 {[%clk 0:02:59]} 6. Nd6+ {[%clk 0:02:45]}  Bxd6 {[%clk 0:03:00]} 7. Qxd6 {[%clk 0:02:46]}  Qe7 {[%clk 0:03:01]} 8. Qd1 {[%clk 0:02:45]}  Nf6 {[%clk 0:03:01]} 9. Nc3 {[%clk 0:02:46]}  d6 {[%clk 0:03:01]} 10. Bg5 {[%clk 0:02:43]}  Be6 {[%clk 0:03:01]} 11. Nd5 {[%clk 0:02:41]}  Bxd5 {[%clk 0:03:01]} 12. exd5 {[%clk 0:02:42]}  Nb8 {[%clk 0:03:02]} 13. Be2 {[%clk 0:02:42]}  Nbd7 {[%clk 0:02:58]} 14. a4 {[%clk 0:02:41]}  Rc8 {[%clk 0:02:56]} 15. a5 {[%clk 0:02:39]}  h6 {[%clk 0:02:55]} 16. Be3 {[%clk 0:02:38]}  O-O {[%clk 0:02:55]} 17. O-O {[%clk 0:02:37]}  Rc7 {[%clk 0:02:50]} 18. c4 {[%clk 0:02:35]}  Nh7 {[%clk 0:02:48]} 19. b4 {[%clk 0:02:18]}  f5 {[%clk 0:02:48]} 20. f3 {[%clk 0:02:03]}  g5 {[%clk 0:02:45]} 21. c5 {[%clk 0:02:03]}  Nhf6 {[%clk 0:02:46]} 22. Rc1 {[%clk 0:01:59]}  f4 {[%clk 0:02:46]} 23. Bf2 {[%clk 0:01:56]}  e4 {[%clk 0:02:44]} 24. cxd6 {[%clk 0:01:41]}  Qxd6 {[%clk 0:02:38]} 25. Rxc7 {[%clk 0:01:42]}  Qxc7 {[%clk 0:02:35]} 26. fxe4 {[%clk 0:01:43]}  Nxe4 {[%clk 0:02:35]} 27. Qd3 {[%clk 0:01:41]}  Ndf6 {[%clk 0:02:18]} 28. Bd4 {[%clk 0:01:40]}  Re8 {[%clk 0:01:57]} 29. Bf3 {[%clk 0:01:27]}  g4 {[%clk 0:01:48]} 30. d6 {[%clk 0:01:01]}  Qxd6 {[%clk 0:01:38]} 31. Qc4+ {[%clk 0:00:55]}  Qe6 {[%clk 0:01:34]} 32. Qxe6+ {[%clk 0:00:37]}  Rxe6 {[%clk 0:01:35]} 33. Bxe4 {[%clk 0:00:37]}  Nxe4 {[%clk 0:01:33]} 34. Rxf4 {[%clk 0:00:37]}  h5 {[%clk 0:01:25]} 35. h3 {[%clk 0:00:37]}  g3 {[%clk 0:01:22]} 36. Be3 {[%clk 0:00:26]}  Nc3 {[%clk 0:00:59]} 37. Rf3 {[%clk 0:00:24]}  h4 {[%clk 0:00:59]} 38. Kf1 {[%clk 0:00:24]}  Re4 {[%clk 0:00:54]} 39. Bc5 {[%clk 0:00:18]}  Nd5 {[%clk 0:00:41]} 40. Rf8+ {[%clk 0:00:18]}  Kg7 {[%clk 0:00:41]} 41. Rb8 {[%clk 0:00:18]}  Nf4 {[%clk 0:00:24]} 42. Rxb7+ {[%clk 0:00:18]}  Kg6 {[%clk 0:00:25]} 43. Re7 {[%clk 0:00:14]}  Rc4 {[%clk 0:00:21]} 44. Be3 {[%clk 0:00:15]}  Nd5 {[%clk 0:00:20]} 45. Re5 {[%clk 0:00:13]}  Nxe3+ {[%clk 0:00:14]} 46. Rxe3 {[%clk 0:00:14]}  Rxb4 {[%clk 0:00:14]} 47. Re6+ {[%clk 0:00:13]}  Kf5 {[%clk 0:00:15]} 48. Rxa6 {[%clk 0:00:14]}  Rb1+ {[%clk 0:00:14]} 49. Ke2 {[%clk 0:00:14]}  Rb2+ {[%clk 0:00:15]} 50. Kf1 {[%clk 0:00:14]}  Rf2+ {[%clk 0:00:15]} 51. Kg1 {[%clk 0:00:14]}  Ra2 {[%clk 0:00:15]} 52. Kf1 {[%clk 0:00:14]}  Rf2+ {[%clk 0:00:16]} 53. Kg1 {[%clk 0:00:15]}  Ra2 {[%clk 0:00:15]} 54. Kf1 {[%clk 0:00:15]}  Rf2+ {[%clk 0:00:12]} 1/2-1/2


[Site "https://www.chess.com"]

[Event "Titled Tuesday Blitz October 11 Early 2022"]
[White "Zhao, Jun"]
[Black "Drozdowski, Kacper"]
[WhiteFideId "8602522"]
[BlackFideId "1136720"]
[WhiteElo "2547"]
[BlackElo "2485"]
[Result "1-0"]
[Round "09"]
[TimeControl "180+1"]
[Date "2022.10.11"]
[WhiteClock "0:00:20"]
[BlackClock "0:00:19"]

1. e4 {[%clk 0:02:53]}  c5 {[%clk 0:02:59]} 2. Nf3 {[%clk 0:02:53]}  e6 {[%clk 0:02:59]} 3. d4 {[%clk 0:02:53]}  cxd4 {[%clk 0:03:00]} 4. Nxd4 {[%clk 0:02:53]}  a6 {[%clk 0:02:59]} 5. Nc3 {[%clk 0:02:53]}  Qc7 {[%clk 0:03:00]} 6. Be3 {[%clk 0:02:52]}  Bb4 {[%clk 0:02:59]} 7. Qd2 {[%clk 0:02:35]}  Nf6 {[%clk 0:02:59]} 8. f3 {[%clk 0:02:34]}  d5 {[%clk 0:02:58]} 9. Nde2 {[%clk 0:02:22]}  dxe4 {[%clk 0:02:55]} 10. a3 {[%clk 0:02:23]}  Bxc3 {[%clk 0:02:53]} 11. Nxc3 {[%clk 0:02:23]}  exf3 {[%clk 0:02:52]} 12. gxf3 {[%clk 0:02:20]}  Nc6 {[%clk 0:02:47]} 13. Rg1 {[%clk 0:02:19]}  Ne5 {[%clk 0:02:39]} 14. Qf2 {[%clk 0:02:14]}  Ng6 {[%clk 0:02:26]} 15. O-O-O {[%clk 0:02:07]}  O-O {[%clk 0:02:17]} 16. h4 {[%clk 0:02:05]}  b5 {[%clk 0:02:06]} 17. Ne4 {[%clk 0:01:54]}  Nxe4 {[%clk 0:01:40]} 18. fxe4 {[%clk 0:01:54]}  h5 {[%clk 0:01:38]} 19. Bd3 {[%clk 0:01:07]}  e5 {[%clk 0:01:32]} 20. Rg5 {[%clk 0:00:53]}  Bg4 {[%clk 0:01:31]} 21. Rg1 {[%clk 0:00:53]}  Qd7 {[%clk 0:00:54]} 22. Be2 {[%clk 0:00:44]}  Rac8 {[%clk 0:00:47]} 23. Bxg4 {[%clk 0:00:42]}  hxg4 {[%clk 0:00:48]} 24. R5xg4 {[%clk 0:00:37]}  Rc4 {[%clk 0:00:21]} 25. h5 {[%clk 0:00:36]}  Rfc8 {[%clk 0:00:22]} 26. hxg6 {[%clk 0:00:27]}  Rxc2+ {[%clk 0:00:21]} 27. Qxc2 {[%clk 0:00:26]}  Rxc2+ {[%clk 0:00:22]} 28. Kxc2 {[%clk 0:00:27]}  f5 {[%clk 0:00:20]} 29. exf5 {[%clk 0:00:25]}  Qxf5+ {[%clk 0:00:21]} 30. Kc1 {[%clk 0:00:23]}  Qd3 {[%clk 0:00:20]} 31. Bd2 {[%clk 0:00:21]}  e4 {[%clk 0:00:20]} 32. Re1 {[%clk 0:00:20]}  Qc4+ {[%clk 0:00:20]} 33. Bc3 {[%clk 0:00:19]}  a5 {[%clk 0:00:19]} 34. Rgxe4 {[%clk 0:00:20]} 1-0


[Site "https://www.chess.com"]

[Event "Titled Tuesday Blitz October 11 Early 2022"]
[White "Zierk, Steven"]
[Black "Colas, Joshua"]
[WhiteFideId "2034255"]
[BlackFideId "2044447"]
[WhiteElo "2494"]
[BlackElo "2347"]
[Result "1-0"]
[Round "09"]
[TimeControl "180+1"]
[Date "2022.10.11"]
[WhiteClock "0:02:02"]
[BlackClock "0:02:06"]

1. e4 {[%clk 0:03:00]}  c6 {[%clk 0:03:00]} 2. d4 {[%clk 0:03:00]}  d5 {[%clk 0:03:01]} 3. exd5 {[%clk 0:02:59]}  cxd5 {[%clk 0:03:01]} 4. Bd3 {[%clk 0:02:59]}  Nc6 {[%clk 0:03:01]} 5. c3 {[%clk 0:02:59]}  Nf6 {[%clk 0:03:02]} 6. Bf4 {[%clk 0:02:58]}  Bg4 {[%clk 0:03:02]} 7. Qb3 {[%clk 0:02:58]}  Qd7 {[%clk 0:03:02]} 8. Nd2 {[%clk 0:02:58]}  e6 {[%clk 0:03:02]} 9. Ngf3 {[%clk 0:02:59]}  Bd6 {[%clk 0:03:03]} 10. Bxd6 {[%clk 0:02:59]}  Qxd6 {[%clk 0:03:04]} 11. O-O {[%clk 0:02:59]}  O-O {[%clk 0:03:04]} 12. Rae1 {[%clk 0:03:00]}  Nd7 {[%clk 0:02:54]} 13. Qc2 {[%clk 0:02:46]}  Bxf3 {[%clk 0:02:45]} 14. Bxh7+ {[%clk 0:02:20]}  Kh8 {[%clk 0:02:44]} 15. Nxf3 {[%clk 0:02:21]}  f5 {[%clk 0:02:25]} 16. Ng5 {[%clk 0:02:14]}  Rf6 {[%clk 0:02:24]} 17. Rxe6 {[%clk 0:02:10]}  Qf4 {[%clk 0:02:23]} 18. Rxf6 {[%clk 0:02:08]}  gxf6 {[%clk 0:02:21]} 19. Ne6 {[%clk 0:02:03]}  Qe4 {[%clk 0:02:08]} 20. Bxf5 {[%clk 0:02:03]}  Qxc2 {[%clk 0:02:07]} 21. Bxc2 {[%clk 0:02:04]}  Re8 {[%clk 0:02:06]} 22. Nf4 {[%clk 0:02:02]} 1-0


[Site "https://www.chess.com"]

[Event "Titled Tuesday Blitz October 11 Early 2022"]
[White "Aloma Vidal, Robert"]
[Black "Manukian, Artak"]
[WhiteFideId "2260409"]
[BlackFideId "13301373"]
[WhiteElo "2435"]
[BlackElo "2519"]
[Result "1-0"]
[Round "10"]
[TimeControl "180+1"]
[Date "2022.10.12"]
[WhiteClock "0:01:29"]
[BlackClock "0:02:01"]

1. e4 {[%clk 0:03:00]}  c6 {[%clk 0:02:59]} 2. d4 {[%clk 0:03:00]}  d5 {[%clk 0:03:00]} 3. e5 {[%clk 0:03:01]}  Bf5 {[%clk 0:02:59]} 4. Nf3 {[%clk 0:02:58]}  e6 {[%clk 0:02:59]} 5. Be2 {[%clk 0:02:58]}  c5 {[%clk 0:02:59]} 6. Be3 {[%clk 0:02:57]}  Qb6 {[%clk 0:02:59]} 7. c4 {[%clk 0:02:57]}  dxc4 {[%clk 0:02:52]} 8. O-O {[%clk 0:02:29]}  Qxb2 {[%clk 0:02:46]} 9. dxc5 {[%clk 0:02:21]}  Qxa1 {[%clk 0:02:39]} 10. Qa4+ {[%clk 0:02:20]}  Nc6 {[%clk 0:02:38]} 11. Nd4 {[%clk 0:02:00]}  Ne7 {[%clk 0:02:34]} 12. Nd2 {[%clk 0:01:53]}  Qc3 {[%clk 0:02:27]} 13. Nxc4 {[%clk 0:01:48]}  O-O-O {[%clk 0:02:11]} 14. Nd6+ {[%clk 0:01:45]}  Rxd6 {[%clk 0:02:11]} 15. cxd6 {[%clk 0:01:36]}  Nxd4 {[%clk 0:02:01]} 16. Qe8# {[%clk 0:01:29]} 1-0


[Site "https://www.chess.com"]

[Event "Titled Tuesday Blitz October 11 Early 2022"]
[White "Ambartsumova, Karina"]
[Black "Silva, Pedro Gil Ferreira Da"]
[WhiteFideId "4166299"]
[BlackFideId "1946102"]
[WhiteElo "2299"]
[BlackElo "2170"]
[Result "1/2-1/2"]
[Round "10"]
[TimeControl "180+1"]
[Date "2022.10.12"]
[WhiteClock "0:00:11"]
[BlackClock "0:00:35"]

1. Nf3 {[%clk 0:03:00]}  c5 {[%clk 0:02:59]} 2. c4 {[%clk 0:03:00]}  Nc6 {[%clk 0:02:59]} 3. d4 {[%clk 0:03:00]}  cxd4 {[%clk 0:03:00]} 4. Nxd4 {[%clk 0:03:01]}  g6 {[%clk 0:02:59]} 5. e4 {[%clk 0:03:00]}  Bg7 {[%clk 0:02:59]} 6. Nc2 {[%clk 0:03:01]}  Nf6 {[%clk 0:03:00]} 7. Nc3 {[%clk 0:03:01]}  O-O {[%clk 0:03:00]} 8. Be2 {[%clk 0:03:01]}  d6 {[%clk 0:03:01]} 9. O-O {[%clk 0:03:02]}  Be6 {[%clk 0:03:01]} 10. Be3 {[%clk 0:03:02]}  Ne5 {[%clk 0:03:00]} 11. b3 {[%clk 0:03:02]}  Neg4 {[%clk 0:03:00]} 12. Bd4 {[%clk 0:03:01]}  Qa5 {[%clk 0:02:46]} 13. h3 {[%clk 0:02:58]}  Ne5 {[%clk 0:02:43]} 14. f4 {[%clk 0:02:58]}  Nc6 {[%clk 0:02:42]} 15. Rc1 {[%clk 0:02:46]}  Nxd4 {[%clk 0:02:41]} 16. Nxd4 {[%clk 0:02:46]}  Bd7 {[%clk 0:02:32]} 17. Kh1 {[%clk 0:02:36]}  Bc6 {[%clk 0:02:27]} 18. Bf3 {[%clk 0:02:28]}  e5 {[%clk 0:02:24]} 19. Nxc6 {[%clk 0:02:23]}  bxc6 {[%clk 0:02:23]} 20. Qxd6 {[%clk 0:02:23]}  exf4 {[%clk 0:02:22]} 21. e5 {[%clk 0:02:08]}  Rad8 {[%clk 0:02:19]} 22. Qxc6 {[%clk 0:01:59]}  Qxe5 {[%clk 0:02:09]} 23. Nd5 {[%clk 0:01:57]}  Nxd5 {[%clk 0:02:08]} 24. cxd5 {[%clk 0:01:40]}  Rfe8 {[%clk 0:02:07]} 25. Qb7 {[%clk 0:01:29]}  Re7 {[%clk 0:02:04]} 26. Qb4 {[%clk 0:01:25]}  Qd6 {[%clk 0:01:50]} 27. Qxd6 {[%clk 0:01:13]}  Rxd6 {[%clk 0:01:50]} 28. Rc6 {[%clk 0:01:14]}  Be5 {[%clk 0:01:44]} 29. Re1 {[%clk 0:01:08]}  Kf8 {[%clk 0:01:39]} 30. b4 {[%clk 0:00:54]}  f6 {[%clk 0:01:19]} 31. Rc8+ {[%clk 0:00:49]}  Kf7 {[%clk 0:01:18]} 32. b5 {[%clk 0:00:41]}  Bd4 {[%clk 0:01:17]} 33. Rxe7+ {[%clk 0:00:35]}  Kxe7 {[%clk 0:01:18]} 34. Rh8 {[%clk 0:00:36]}  h5 {[%clk 0:01:16]} 35. Rh7+ {[%clk 0:00:36]}  Kd8 {[%clk 0:01:16]} 36. a4 {[%clk 0:00:35]}  Rd7 {[%clk 0:01:12]} 37. Rh8+ {[%clk 0:00:35]}  Kc7 {[%clk 0:01:12]} 38. Rg8 {[%clk 0:00:24]}  Re7 {[%clk 0:01:09]} 39. g4 {[%clk 0:00:14]}  fxg3 {[%clk 0:01:03]} 40. Kg2 {[%clk 0:00:13]}  g5 {[%clk 0:00:59]} 41. Kxg3 {[%clk 0:00:11]}  Kb6 {[%clk 0:00:57]} 42. Bxh5 {[%clk 0:00:11]}  Re3+ {[%clk 0:00:54]} 43. Bf3 {[%clk 0:00:11]}  Ra3 {[%clk 0:00:53]} 44. d6 {[%clk 0:00:11]}  Be5+ {[%clk 0:00:53]} 45. Kg2 {[%clk 0:00:11]}  Bxd6 {[%clk 0:00:53]} 46. Rg6 {[%clk 0:00:11]}  Be5 {[%clk 0:00:53]} 47. Rg7 {[%clk 0:00:11]}  Rxa4 {[%clk 0:00:52]} 48. Rb7+ {[%clk 0:00:09]}  Kc5 {[%clk 0:00:52]} 49. Bc6 {[%clk 0:00:08]}  Ra3 {[%clk 0:00:51]} 50. Rf7 {[%clk 0:00:07]}  Kd4 {[%clk 0:00:48]} 51. Rd7+ {[%clk 0:00:05]}  Ke3 {[%clk 0:00:48]} 52. Re7 {[%clk 0:00:05]}  Ra2+ {[%clk 0:00:47]} 53. Kf1 {[%clk 0:00:05]}  Kf4 {[%clk 0:00:44]} 54. Rh7 {[%clk 0:00:04]}  Kg3 {[%clk 0:00:43]} 55. Ke1 {[%clk 0:00:05]}  f5 {[%clk 0:00:42]} 56. Rh5 {[%clk 0:00:04]}  Bf4 {[%clk 0:00:42]} 57. Bd7 {[%clk 0:00:04]}  Bd2+ {[%clk 0:00:38]} 58. Kd1 {[%clk 0:00:04]}  Kf4 {[%clk 0:00:38]} 59. h4 {[%clk 0:00:03]}  gxh4 {[%clk 0:00:33]} 60. Rxh4+ {[%clk 0:00:04]}  Ke5 {[%clk 0:00:32]} 61. Rh2 {[%clk 0:00:05]}  Ra1+ {[%clk 0:00:31]} 62. Kc2 {[%clk 0:00:05]}  Bf4 {[%clk 0:00:30]} 63. Re2+ {[%clk 0:00:05]}  Kd6 {[%clk 0:00:30]} 64. Bxf5 {[%clk 0:00:06]}  Ra2+ {[%clk 0:00:29]} 65. Kd3 {[%clk 0:00:06]}  Rxe2 {[%clk 0:00:30]} 66. Kxe2 {[%clk 0:00:07]}  Kc5 {[%clk 0:00:30]} 67. Bd3 {[%clk 0:00:08]}  Kb6 {[%clk 0:00:30]} 68. Kd1 {[%clk 0:00:08]}  Bd6 {[%clk 0:00:31]} 69. Kc2 {[%clk 0:00:09]}  Bc5 {[%clk 0:00:31]} 70. Kb3 {[%clk 0:00:09]}  Bd6 {[%clk 0:00:32]} 71. Kc4 {[%clk 0:00:10]}  Bc5 {[%clk 0:00:33]} 72. Bc2 {[%clk 0:00:10]}  Bd6 {[%clk 0:00:33]} 73. Ba4 {[%clk 0:00:11]}  Bc5 {[%clk 0:00:34]} 74. Bc2 {[%clk 0:00:12]}  a6 {[%clk 0:00:34]} 75. bxa6 {[%clk 0:00:11]}  Kxa6 {[%clk 0:00:35]} 1/2-1/2


[Site "https://www.chess.com"]

[Event "Titled Tuesday Blitz October 11 Early 2022"]
[White "Araujo Sanchez, Josue"]
[Black "Zhao, Jun"]
[WhiteFideId "6416896"]
[BlackFideId "8602522"]
[WhiteElo "2370"]
[BlackElo "2547"]
[Result "0-1"]
[Round "10"]
[TimeControl "180+1"]
[Date "2022.10.11"]
[WhiteClock "0:00:35"]
[BlackClock "0:00:04"]

1. d4 {[%clk 0:02:56]}  Nf6 {[%clk 0:02:59]} 2. Nf3 {[%clk 0:02:57]}  d5 {[%clk 0:02:59]} 3. Bf4 {[%clk 0:02:57]}  e6 {[%clk 0:02:59]} 4. e3 {[%clk 0:02:58]}  Bd6 {[%clk 0:02:59]} 5. Nbd2 {[%clk 0:02:58]}  O-O {[%clk 0:02:58]} 6. Bg3 {[%clk 0:02:57]}  c5 {[%clk 0:02:58]} 7. c3 {[%clk 0:02:52]}  b6 {[%clk 0:02:58]} 8. a4 {[%clk 0:02:50]}  Qc7 {[%clk 0:02:58]} 9. Bd3 {[%clk 0:02:46]}  Nbd7 {[%clk 0:02:57]} 10. a5 {[%clk 0:02:40]}  Bb7 {[%clk 0:02:54]} 11. O-O {[%clk 0:02:39]}  Bxg3 {[%clk 0:02:53]} 12. axb6 {[%clk 0:02:40]}  Bxf2+ {[%clk 0:02:36]} 13. Rxf2 {[%clk 0:02:40]}  axb6 {[%clk 0:02:36]} 14. Rc1 {[%clk 0:02:29]}  c4 {[%clk 0:02:20]} 15. Bb1 {[%clk 0:02:27]}  Ng4 {[%clk 0:02:21]} 16. Re2 {[%clk 0:02:27]}  f5 {[%clk 0:02:21]} 17. Qe1 {[%clk 0:02:26]}  Ngf6 {[%clk 0:02:18]} 18. Qh4 {[%clk 0:02:25]}  h6 {[%clk 0:02:13]} 19. Qf4 {[%clk 0:02:23]}  Qxf4 {[%clk 0:02:09]} 20. exf4 {[%clk 0:02:24]}  Ne4 {[%clk 0:02:10]} 21. g3 {[%clk 0:02:21]}  b5 {[%clk 0:02:10]} 22. Ne1 {[%clk 0:02:18]}  Nb6 {[%clk 0:02:07]} 23. Nc2 {[%clk 0:02:18]}  Na4 {[%clk 0:02:07]} 24. Nxe4 {[%clk 0:02:15]}  fxe4 {[%clk 0:02:05]} 25. Nb4 {[%clk 0:02:15]}  Bc8 {[%clk 0:01:58]} 26. Bc2 {[%clk 0:02:15]}  Nb6 {[%clk 0:01:55]} 27. Ree1 {[%clk 0:02:16]}  Bd7 {[%clk 0:01:55]} 28. Ra1 {[%clk 0:02:16]}  Kf7 {[%clk 0:01:54]} 29. Kf2 {[%clk 0:02:16]}  Ke7 {[%clk 0:01:53]} 30. Ke3 {[%clk 0:02:16]}  Kd6 {[%clk 0:01:53]} 31. Reb1 {[%clk 0:02:15]}  Rfb8 {[%clk 0:01:49]} 32. h4 {[%clk 0:02:13]}  Be8 {[%clk 0:01:48]} 33. Bd1 {[%clk 0:02:13]}  g6 {[%clk 0:01:38]} 34. Bc2 {[%clk 0:02:11]}  Nc8 {[%clk 0:01:38]} 35. Bd1 {[%clk 0:02:07]}  Ne7 {[%clk 0:01:38]} 36. Bg4 {[%clk 0:02:07]}  Bd7 {[%clk 0:01:31]} 37. Kd2 {[%clk 0:02:05]}  Rg8 {[%clk 0:01:28]} 38. Rxa8 {[%clk 0:02:04]}  Rxa8 {[%clk 0:01:27]} 39. Rh1 {[%clk 0:02:05]}  Kc7 {[%clk 0:01:23]} 40. Ke2 {[%clk 0:01:59]}  Kb6 {[%clk 0:01:17]} 41. Kd2 {[%clk 0:01:53]}  Rg8 {[%clk 0:01:16]} 42. Be2 {[%clk 0:01:43]}  Nf5 {[%clk 0:01:10]} 43. g4 {[%clk 0:01:41]}  Ne7 {[%clk 0:01:07]} 44. h5 {[%clk 0:01:37]}  Rf8 {[%clk 0:00:21]} 45. Ke3 {[%clk 0:01:34]}  g5 {[%clk 0:00:19]} 46. fxg5 {[%clk 0:01:34]}  hxg5 {[%clk 0:00:20]} 47. Ra1 {[%clk 0:01:27]}  Ng8 {[%clk 0:00:17]} 48. Ra6+ {[%clk 0:01:25]}  Kc7 {[%clk 0:00:17]} 49. Ra7+ {[%clk 0:01:24]}  Kd6 {[%clk 0:00:18]} 50. Na6 {[%clk 0:01:24]}  Nf6 {[%clk 0:00:12]} 51. Nc5 {[%clk 0:01:24]}  Rb8 {[%clk 0:00:11]} 52. Kd2 {[%clk 0:01:17]}  b4 {[%clk 0:00:11]} 53. Kc2 {[%clk 0:01:13]}  bxc3 {[%clk 0:00:09]} 54. bxc3 {[%clk 0:01:14]}  Rf8 {[%clk 0:00:06]} 55. Kd2 {[%clk 0:01:13]}  Rb8 {[%clk 0:00:05]} 56. Kc2 {[%clk 0:01:13]}  Rh8 {[%clk 0:00:05]} 57. Ra6+ {[%clk 0:01:14]}  Ke7 {[%clk 0:00:04]} 58. Ra7 {[%clk 0:01:12]}  Rb8 {[%clk 0:00:04]} 59. Bd1 {[%clk 0:01:12]}  Kd6 {[%clk 0:00:02]} 60. Ra6+ {[%clk 0:01:11]}  Bc6 {[%clk 0:00:02]} 61. Kc1 {[%clk 0:01:11]}  Ra8 {[%clk 0:00:03]} 62. Rxa8 {[%clk 0:01:05]}  Bxa8 {[%clk 0:00:03]} 63. Kd2 {[%clk 0:01:02]}  Bc6 {[%clk 0:00:03]} 64. Na6 {[%clk 0:00:56]}  Be8 {[%clk 0:00:02]} 65. Ke3 {[%clk 0:00:53]}  Bd7 {[%clk 0:00:03]} 66. Nc5 {[%clk 0:00:51]}  Bc8 {[%clk 0:00:03]} 67. h6 {[%clk 0:00:47]}  Bd7 {[%clk 0:00:02]} 68. Be2 {[%clk 0:00:43]}  Be8 {[%clk 0:00:03]} 69. Nb7+ {[%clk 0:00:40]}  Ke7 {[%clk 0:00:03]} 70. Nc5 {[%clk 0:00:41]}  Bg6 {[%clk 0:00:03]} 71. Na6 {[%clk 0:00:38]}  Ng8 {[%clk 0:00:03]} 72. Bd1 {[%clk 0:00:35]}  Nxh6 {[%clk 0:00:04]} 73. Nc7 {[%clk 0:00:34]}  Be8 {[%clk 0:00:04]} 74. Nb5 {[%clk 0:00:35]}  Bxb5 {[%clk 0:00:04]} 0-1


[Site "https://www.chess.com"]